fUST/lending_fUST_20250217
["ID","MTS","AMOUNT","RATE_DAILY","PERIOD"]
[353322508,1739765368233,-500.0,0.00013055,2]
[353322509,1739765368257,-500.0,0.00013055,2]
[353322510,1739765368286,-1028.76,0.00013055,2]
[353322511,1739765368308,-500.0,0.00013055,2]
[353322512,1739765368331,-500.0,0.00013055,2]
[353322513,1739765368353,-500.0,0.00013055,2]
[353322514,1739765368377,-500.0,0.00013055,2]
[353322515,1739765368399,-500.0,0.00013055,2]
[353322516,1739765368424,-500.0,0.00013055,2]
[353322517,1739765368445,-500.0,0.00013055,2]
[353322518,1739765368467,-500.0,0.00013055,2]
[353322519,1739765368489,-500.0,0.00013055,2]
[353322520,1739765368510,-8000.0,0.00013056,2]
[353322521,1739765368533,-426.69410205,0.00013056,2]
[353322522,1739765368556,-500.0,0.00013056,2]
[353322523,1739765368577,-500.0,0.00013056,2]
[353322524,1739765368599,-500.0,0.00013056,2]
[353322525,1739765368621,-500.0,0.00013056,2]
[353322526,1739765368643,-500.0,0.00013056,2]
[353322527,1739765368664,-500.0,0.00013056,2]
[353322528,1739765368685,-500.0,0.00013056,2]
[353322529,1739765368707,-500.0,0.00013056,2]
[353322530,1739765368733,-500.0,0.00013056,2]
[353322531,1739765368755,-500.0,0.00013056,2]
[353322532,1739765368777,-500.0,0.00013056,2]
[353322533,1739765368798,-500.0,0.00013056,2]
[353322534,1739765368820,-500.0,0.00013056,2]
[353322535,1739765368848,-500.0,0.00013056,2]
[353322536,1739765368870,-532.77,0.00013056,2]
[353322537,1739765368891,-500.0,0.00013056,2]
[353322538,1739765368914,-500.0,0.00013056,2]
[353322539,1739765368936,-500.0,0.00013056,2]
[353322540,1739765368959,-500.0,0.00013056,2]
[353322541,1739765368981,-500.0,0.00013056,2]
[353322542,1739765369002,-500.0,0.00013056,2]
[353322543,1739765369024,-500.0,0.00013056,2]
[353322544,1739765369045,-500.0,0.00013056,2]
[353322545,1739765369068,-500.0,0.00013056,2]
[353322546,1739765369089,-500.0,0.00013056,2]
[353322547,1739765369110,-521.22,0.00013056,2]
[353322548,1739765369132,-500.0,0.00013056,2]
[353322549,1739765369153,-500.0,0.00013056,2]
[353322550,1739765369175,-500.0,0.00013056,2]
[353322551,1739765369196,-500.0,0.00013056,2]
[353322552,1739765369217,-500.0,0.00013056,2]
[353322553,1739765369239,-500.0,0.00013056,2]
[353322554,1739765369262,-500.0,0.00013056,2]
[353322555,1739765369283,-500.0,0.00013056,2]
[353322556,1739765369304,-631.74,0.00013056,2]
[353322557,1739765369325,-275.83184728,0.00013056,2]
[353322558,1739765369346,-500.0,0.00013056,2]
[353322559,1739765369367,-500.0,0.00013056,2]
[353322560,1739765369387,-500.0,0.00013056,2]
[353322561,1739765369408,-379.5129141,0.00013056,2]
[353322562,1739765369430,-500.0,0.00013056,2]
[353322563,1739765369450,-500.0,0.00013056,2]
[353322564,1739765369470,-500.0,0.00013056,2]
[353322565,1739765369491,-500.0,0.00013056,2]
[353322566,1739765369512,-500.0,0.00013056,2]
[353322567,1739765369535,-501.38521472,0.00013056,2]
[353322568,1739765369556,-556.50555583,0.00013056,2]
[353322569,1739765369577,-500.0,0.00013056,2]
[353322570,1739765369598,-500.0,0.00013056,2]
[353322571,1739765369620,-500.0,0.00013056,2]
[353322572,1739765369641,-500.0,0.00013056,2]
[353322573,1739765369662,-217.01140612,0.00013056,2]
[353322574,1739765369682,-519.85772817,0.00013056,2]
[353322575,1739765369703,-500.0,0.00013056,2]
[353322576,1739765369724,-500.0,0.00013056,2]
[353322577,1739765369745,-500.0,0.00013056,2]
[353322578,1739765369765,-500.0,0.00013056,2]
[353322579,1739765369787,-500.0,0.00013056,2]
[353322580,1739765369807,-500.0,0.00013056,2]
[353322581,1739765369830,-646.76,0.00013056,2]
[353322582,1739765369853,-500.0,0.00013056,2]
[353322583,1739765369875,-500.0,0.00013056,2]
[353322584,1739765369897,-500.0,0.00013056,2]
[353322585,1739765369920,-503.32265459,0.00013056,2]
[353322586,1739765369941,-501.01832098,0.00013056,2]
[353322587,1739765369962,-500.0,0.00013056,2]
[353322588,1739765369983,-503.26656702,0.00013056,2]
[353322589,1739765370005,-24900.0,0.00013057,2]
[353322590,1739765370027,-500.0,0.00013137,2]
[353322591,1739765370048,-500.0,0.00013137,2]
[353322592,1739765370070,-500.0,0.00013137,2]
[353322593,1739765370094,-500.0,0.00013137,2]
[353322594,1739765370116,-404.13,0.00013137,2]
[353322595,1739765370137,-500.0,0.00013137,2]
[353322596,1739765370159,-500.0,0.00013137,2]
[353322597,1739765370181,-450.51,0.00013137,2]
[353322598,1739765370203,-500.0,0.00013137,2]
[353322599,1739765370224,-500.0,0.00013137,2]
[353322600,1739765370247,-1028.76,0.00013137,2]
[353322601,1739765370277,-500.0,0.00013137,2]
[353322602,1739765370303,-500.0,0.00013137,2]
[353322603,1739765370324,-227.31,0.00013137,2]
[353322604,1739765370346,-594.54,0.00013137,2]
[353322605,1739765370369,-500.0,0.00013137,2]
[353322606,1739765370391,-500.0,0.00013137,2]
[353322607,1739765370411,-168.837,0.00013138,2]
[353322608,1739765370433,-503.64405504,0.00013138,2]
[353322609,1739765370456,-500.0,0.00013138,2]
[353322610,1739765370481,-500.0,0.00013138,2]
[353322611,1739765370666,-500.0,0.00013138,2]
[353322612,1739765370689,-500.0,0.00013138,2]
[353322613,1739765370710,-500.0,0.00013138,2]
[353322614,1739765370731,-500.0,0.00013138,2]
[353322615,1739765370751,-500.0,0.00013138,2]
[353322616,1739765370772,-540.37,0.00013138,2]
[353322617,1739765370794,-500.0,0.00013138,2]
[353322618,1739765370816,-500.0,0.00013138,2]
[353322619,1739765370842,-500.0,0.00013138,2]
[353322620,1739765370866,-646.76,0.00013138,2]
[353322621,1739765370891,-500.0,0.00013138,2]
[353322622,1739765370913,-500.0,0.0001322,2]
[353322623,1739765370934,-542.51,0.0001322,2]
[353322624,1739765370956,-265.36,0.0001322,2]
[353322625,1739765370979,-500.0,0.0001322,2]
[353322626,1739765371001,-365.29,0.0001322,2]
[353322627,1739765371024,-234.53,0.0001322,2]
[353322628,1739765371045,-304.29,0.0001322,2]
[353322629,1739765371065,-500.0,0.0001322,2]
[353322630,1739765371086,-500.0,0.0001322,2]
[353322631,1739765371107,-500.0,0.0001322,2]
[353322632,1739765371128,-500.0,0.0001322,2]
[353322633,1739765371151,-646.76,0.0001322,2]
[353322634,1739765371172,-500.0,0.0001322,2]
[353322635,1739765371195,-500.0,0.0001322,2]
[353322636,1739765371217,-500.0,0.0001322,2]
[353322637,1739765371238,-473.63,0.0001322,2]
[353322638,1739765371261,-500.0,0.0001322,2]
[353322639,1739765371284,-500.0,0.0001322,2]
[353322640,1739765371305,-151.88,0.0001322,2]
[353322641,1739765371336,-500.0,0.0001322,2]
[353322642,1739765371357,-1028.76,0.0001322,2]
[353322643,1739765371380,-500.0,0.0001322,2]
[353322644,1739765371401,-500.0,0.0001322,2]
[353322645,1739765371423,-500.0,0.0001322,2]
[353322646,1739765371445,-388.26871952,0.00013301,2]
[353322647,1739765371467,-500.0,0.00013301,2]
[353322648,1739765371488,-500.0,0.00013301,2]
[353322649,1739765371509,-193.1674669,0.00013301,2]
[353322650,1739765371532,-500.0,0.00013301,2]
[353322651,1739765371554,-500.0,0.00013301,2]
[353322652,1739765371576,-500.0,0.00013301,2]
[353322653,1739765371598,-500.0,0.00013301,2]
[353322654,1739765371620,-500.0,0.00013301,2]
[353322655,1739765371641,-500.0,0.00013301,2]
[353322656,1739765371664,-500.0,0.00013301,2]
[353322657,1739765371686,-502.60293462,0.00013301,2]
[353322658,1739765371709,-500.0,0.00013301,2]
[353322659,1739765371731,-333.5277449,0.00013301,2]
[353322660,1739765371753,-500.0,0.00013301,2]
[353322661,1739765371776,-500.0,0.00013301,2]
[353322662,1739765371798,-500.0,0.00013301,2]
[353322663,1739765371820,-500.0,0.00013301,2]
[353322664,1739765371846,-500.0,0.00013301,2]
[353322665,1739765371868,-500.0,0.00013301,2]
[353322666,1739765371891,-500.0,0.00013301,2]
[353322667,1739765371914,-500.0,0.00013301,2]
[353322668,1739765371937,-500.0,0.00013301,2]
[353322669,1739765371960,-500.0,0.00013301,2]
[353322670,1739765371983,-500.0,0.00013301,2]
[353322671,1739765372006,-434.48665247,0.00013301,2]
[353322672,1739765372028,-500.0,0.00013301,2]
[353322673,1739765372050,-500.0,0.00013301,2]
[353322674,1739765372072,-500.0,0.00013301,2]
[353322675,1739765372094,-500.0,0.00013301,2]
[353322676,1739765372116,-500.0,0.00013301,2]
[353322677,1739765372138,-500.0,0.00013301,2]
[353322678,1739765372159,-500.0,0.00013301,2]
[353322679,1739765372182,-500.0,0.00013301,2]
[353322680,1739765372204,-395.17,0.00013302,2]
[353322681,1739765372225,-500.0,0.00013302,2]
[353322682,1739765372248,-500.0,0.00013302,2]
[353322683,1739765372271,-500.0,0.00013302,2]
[353322684,1739765372293,-500.0,0.00013302,2]
[353322685,1739765372316,-1028.76,0.00013302,2]
[353322686,1739765372338,-500.0,0.00013302,2]
[353322687,1739765372360,-500.0,0.00013302,2]
[353322688,1739765372383,-500.0,0.00013302,2]
[353322689,1739765372404,-500.0,0.00013303,2]
[353322690,1739765372424,-387.89,0.00013303,2]
[353322691,1739765372448,-500.0,0.00013303,2]
[353322692,1739765372470,-500.0,0.00013303,2]
[353322693,1739765372494,-500.0,0.00013303,2]
[353322694,1739765372516,-646.76,0.00013303,2]
[353322695,1739765372538,-292.65,0.00013303,2]
[353322696,1739765372558,-119.93234066,0.00013384,2]
[353322697,1739765373171,-500.0,0.0001322,2]
[353322698,1739765373199,-292.19594979,0.00013302,2]
[353322747,1739765432212,-5000.0,0.0001034,2]
[353322749,1739765432221,-500.0,0.00012924,2]
[353322751,1739765432231,-300.0,0.00013054,2]
[353322753,1739765432240,-500.0,0.00013055,2]
[353322755,1739765432249,-500.0,0.00013055,2]
[353322757,1739765432258,-500.0,0.00013055,2]
[353322759,1739765432267,-500.0,0.00013055,2]
[353322761,1739765432277,-538.96,0.00013055,2]
[353322763,1739765432287,-500.0,0.00013055,2]
[353322765,1739765432296,-215.7206157,0.00013055,2]
[353322767,1739765432305,-500.0,0.00013137,2]
[353322769,1739765432314,-500.0,0.00013137,2]
[353322771,1739765432324,-500.0,0.00013137,2]
[353322773,1739765432334,-500.0,0.00013137,2]
[353322775,1739765432343,-538.96,0.00013137,2]
[353322777,1739765432352,-500.0,0.0001322,2]
[353322779,1739765432362,-500.0,0.0001322,2]
[353322781,1739765432370,-500.0,0.0001322,2]
[353322783,1739765432379,-500.0,0.0001322,2]
[353322785,1739765432389,-538.96,0.0001322,2]
[353322787,1739765432398,-207.80405021,0.00013302,2]
[353322790,1739765432408,-338.09,0.00013302,2]
[353322791,1739765432417,-209.96,0.00013302,2]
[353322793,1739765432427,-500.0,0.00013302,2]
[353322795,1739765432436,-500.0,0.00013302,2]
[353322798,1739765432446,-538.96,0.00013302,2]
[353322799,1739765432455,-500.0,0.00013384,2]
[353322801,1739765432464,-500.0,0.00013384,2]
[353322803,1739765432473,-500.0,0.00013384,2]
[353322806,1739765432482,-1028.76,0.00013384,2]
[353322808,1739765432492,-500.0,0.00013384,2]
[353322810,1739765432501,-500.0,0.00013384,2]
[353322812,1739765432510,-500.0,0.00013384,2]
[353322814,1739765432519,-500.0,0.00013384,2]
[353322816,1739765432528,-500.0,0.00013384,2]
[353322818,1739765432537,-500.0,0.00013384,2]
[353322820,1739765432546,-538.96,0.00013384,2]
[353322822,1739765432555,-395.45,0.00013385,2]
[353322824,1739765432564,-500.0,0.00013445,2]
[353322826,1739765432573,-500.0,0.00013448,2]
[353322828,1739765432582,-517.25483691,0.00013448,2]
[353322830,1739765432591,-500.0,0.0001345,2]
[353322832,1739765432600,-500.0,0.00013466,2]
[353322834,1739765432609,-500.0,0.00013466,2]
[353322836,1739765432618,-500.0,0.00013466,2]
[353322838,1739765432628,-1028.76,0.00013466,2]
[353322840,1739765432637,-500.0,0.00013466,2]
[353322842,1739765432646,-491.47,0.00013466,2]
[353322844,1739765432655,-500.0,0.00013466,2]
[353322846,1739765432664,-500.0,0.00013466,2]
[353322848,1739765432674,-500.0,0.00013466,2]
[353322850,1739765432683,-500.0,0.00013466,2]
[353322864,1739765432807,-538.96,0.00013466,2]
[353322867,1739765432818,-151.0,0.00013467,2]
[353322869,1739765432827,-151.0,0.00013467,2]
[353322870,1739765432837,-151.0,0.00013467,2]
[353322873,1739765432850,-151.0,0.00013467,2]
[353322875,1739765432860,-151.0,0.00013467,2]
[353322877,1739765432869,-151.0,0.00013467,2]
[353322879,1739765432880,-165.336715,0.00013467,2]
[353322880,1739765432891,-165.336715,0.00013467,2]
[353322882,1739765432900,-151.0,0.00013467,2]
[353322884,1739765432909,-151.0,0.00013467,2]
[353322886,1739765432918,-214.94175,0.00013467,2]
[353322889,1739765432930,-151.02408,0.00013467,2]
[353322891,1739765432939,-384.883437,0.00013467,2]
[353322893,1739765432948,-384.883437,0.00013467,2]
[353322895,1739765432957,-500.0,0.00013494,2]
[353322897,1739765432966,-151.0,0.00013548,2]
[353322899,1739765432975,-1310.8349,0.00013548,2]
[353322901,1739765432985,-1310.8349,0.00013548,2]
[353322903,1739765432994,-516.25338935,0.00013548,2]
[353322905,1739765433003,-500.0,0.00013548,2]
[353322907,1739765433012,-500.0,0.00013548,2]
[353322909,1739765433022,-1028.76,0.00013548,2]
[353322911,1739765433031,-500.0,0.00013548,2]
[353322913,1739765433040,-500.0,0.00013548,2]
[353322915,1739765433050,-500.0,0.00013548,2]
[353322917,1739765433059,-442.85,0.00013548,2]
[353322919,1739765433068,-347.49765934,0.00013548,2]
[353322921,1739765433078,-538.96,0.00013548,2]
[353322923,1739765433088,-152.0,0.00013553,2]
[353322925,1739765433097,-500.0,0.0001363,2]
[353322927,1739765433107,-500.0,0.0001363,2]
[353322929,1739765433117,-1028.76,0.0001363,2]
[353322931,1739765433128,-211.88,0.0001363,2]
[353322933,1739765433138,-500.0,0.0001363,2]
[353322935,1739765433147,-500.0,0.0001363,2]
[353322937,1739765433158,-538.96,0.0001363,2]
[353322939,1739765433167,-284.352187,0.00013699,2]
[353322941,1739765433176,-500.0,0.00013713,2]
[353322943,1739765433186,-500.0,0.00013713,2]
[353322945,1739765433195,-1028.76,0.00013713,2]
[353322947,1739765433205,-500.0,0.00013713,2]
[353322949,1739765433215,-500.0,0.00013713,2]
[353322951,1739765433224,-538.96,0.00013713,2]
[353322953,1739765433233,-500.0,0.00013768,2]
[353322954,1739765433242,-500.0,0.00013795,2]
[353322956,1739765433252,-500.0,0.00013795,2]
[353322958,1739765433261,-1028.76,0.00013795,2]
[353322960,1739765433270,-500.0,0.00013795,2]
[353322963,1739765433280,-500.0,0.00013795,2]
[353322964,1739765433289,-538.96,0.00013795,2]
[353322966,1739765433299,-500.0,0.00013877,2]
[353322969,1739765433308,-500.0,0.00013877,2]
[353322971,1739765433318,-114.30848205,0.00013877,2]
[353322973,1739765433331,-881.630046,0.00013877,2]
[353323709,1739765440643,-32.82147195,0.00013877,2]
[353323711,1739765440653,-500.0,0.00013877,2]
[353323713,1739765440662,-500.0,0.00013877,2]
[353323715,1739765440671,-538.96,0.00013877,2]
[353323717,1739765440681,-151.0,0.00013878,2]
[353323719,1739765440690,-151.0,0.00013878,2]
[353323721,1739765440699,-151.0,0.00013878,2]
[353323723,1739765440709,-165.336715,0.00013878,2]
[353323725,1739765440718,-165.336715,0.00013878,2]
[353323727,1739765440728,-151.0,0.00013878,2]
[353323729,1739765440737,-384.883437,0.00013878,2]
[353323731,1739765440747,-384.883437,0.00013878,2]
[353323733,1739765440757,-197.52758985,0.00013898,2]
[353323735,1739765440766,-300.0,0.000139,4]
[353323737,1739765440776,-500.0,0.00013959,2]
[353323739,1739765440785,-500.0,0.00013959,2]
[353323741,1739765440795,-1028.76,0.00013959,2]
[353323743,1739765440805,-500.0,0.00013959,2]
[353323745,1739765440814,-500.0,0.00013959,2]
[353323747,1739765440824,-192.0,0.00013959,2]
[353323749,1739765440835,-538.96,0.00013959,2]
[353323751,1739765440845,-151.0,0.0001396,2]
[353323753,1739765440857,-1000.0,0.00013993,2]
[353323755,1739765440867,-500.0,0.00013998,2]
[353323757,1739765440877,-160.0,0.00013999,2]
[353323759,1739765440886,-160.09128001,0.00013999,2]
[353323760,1739765440897,-500.0,0.00013999,2]
[353323761,1739765440906,-500.0,0.00013999,2]
[353323762,1739765440916,-500.0,0.00013999,2]
[353323763,1739765440925,-437.16518361,0.00013999,2]
[353323764,1739765440935,-150.0,0.00014,2]
[353323765,1739765440944,-151.0,0.00014,2]
[353323766,1739765440953,-151.0,0.00014,2]
[353323767,1739765440962,-264.82241,0.00014,2]
[353323768,1739765440971,-264.82241,0.00014,2]
[353323769,1739765440981,-151.0,0.00014,2]
[353323770,1739765440991,-151.0,0.00014,2]
[353323771,1739765441000,-1310.8349,0.00014,2]
[353323772,1739765441009,-1310.8349,0.00014,2]
[353323773,1739765441019,-1310.8349,0.00014,2]
[353323774,1739765441028,-1310.8349,0.00014,2]
[353323775,1739765441037,-151.0,0.00014,2]
[353323776,1739765441046,-151.0,0.00014,2]
[353323777,1739765441056,-151.0,0.00014,2]
[353323779,1739765441065,-151.0,0.00014,2]
[353323781,1739765441075,-165.336715,0.00014,2]
[353323783,1739765441085,-165.336715,0.00014,2]
[353323785,1739765441094,-151.0,0.00014,2]
[353323787,1739765441103,-384.883437,0.00014,2]
[353323789,1739765441113,-384.883437,0.00014,2]
[353323791,1739765441123,-80679.83071218,0.00014,2]
[353323794,1739765441135,-8865.58307668,0.00014,2]
[353323796,1739765441148,-69528.52971833,0.00014,2]
[353323980,1739765443074,-1334.24479402,0.00013738,2]
[353323982,1739765443086,-50141.9389636,0.00014,2]
[353323984,1739765443096,-500.0,0.00014041,2]
[353323986,1739765443105,-181.54,0.00014041,2]
[353323988,1739765443116,-1028.76,0.00014041,2]
[353323990,1739765443125,-500.0,0.00014041,2]
[353323992,1739765443135,-500.0,0.00014041,2]
[353323994,1739765443145,-538.96,0.00014041,2]
[353323996,1739765443154,-500.0,0.00014042,2]
[353323998,1739765443163,-163.9215773,0.00014073,2]
[353324000,1739765443172,-500.62274291,0.00014073,2]
[353324002,1739765443181,-500.0,0.00014073,2]
[353324004,1739765443190,-500.0,0.00014073,2]
[353324006,1739765443199,-500.0,0.00014124,2]
[353324008,1739765443209,-1028.76,0.00014124,2]
[353324010,1739765443218,-530.69,0.00014124,2]
[353324012,1739765443226,-500.0,0.00014124,2]
[353324014,1739765443236,-538.96,0.00014124,2]
[353324016,1739765443245,-500.0,0.00014206,2]
[353324018,1739765443254,-1028.76,0.00014206,2]
[353324020,1739765443264,-500.0,0.00014206,2]
[353324022,1739765443274,-538.96,0.00014206,2]
[353324024,1739765443283,-500.0,0.00014288,2]
[353324026,1739765443292,-1028.76,0.00014288,2]
[353324028,1739765443302,-500.0,0.00014288,2]
[353324030,1739765443311,-538.96,0.00014288,2]
[353324032,1739765443319,-300.0,0.00014315,2]
[353324034,1739765443328,-500.0,0.00014316,2]
[353324036,1739765443337,-500.0,0.0001437,2]
[353324038,1739765443347,-1028.76,0.0001437,2]
[353324040,1739765443356,-240.8,0.0001437,2]
[353324042,1739765443365,-538.96,0.0001437,2]
[353324044,1739765443374,-168.48787744,0.00014384,2]
[353324047,1739765443383,-151.0,0.00014438,2]
[353324049,1739765443392,-264.82241,0.00014438,2]
[353324051,1739765443401,-264.82241,0.00014438,2]
[353324053,1739765443410,-500.0,0.00014452,2]
[353324055,1739765443421,-1028.76,0.00014452,2]
[353324057,1739765443430,-538.96,0.00014452,2]
[353324059,1739765443439,-500.0,0.00014535,2]
[353324061,1739765443448,-1028.76,0.00014535,2]
[353324063,1739765443457,-538.96,0.00014535,2]
[353324065,1739765443466,-7438.69753278,0.00014544,2]
[353324067,1739765443475,-151.0,0.00014576,2]
[353324069,1739765443484,-151.0,0.00014582,2]
[353324071,1739765443493,-1310.8349,0.00014582,2]
[353324073,1739765443502,-1310.8349,0.00014582,2]
[353324075,1739765443511,-151.0,0.00014582,2]
[353324077,1739765443520,-151.0,0.00014582,2]
[353324079,1739765443530,-151.0,0.00014582,2]
[353324081,1739765443539,-165.336715,0.00014582,2]
[353324083,1739765443548,-165.336715,0.00014582,2]
[353324085,1739765443557,-151.0,0.00014582,2]
[353324087,1739765443567,-384.883437,0.00014582,2]
[353324089,1739765443576,-384.883437,0.00014582,2]
[353324091,1739765443585,-500.0,0.0001459,2]
[353324093,1739765443594,-332.0,0.0001459,2]
[353324095,1739765443603,-200.0,0.000146,3]
[353324097,1739765443612,-200.0,0.000146,2]
[353324098,1739765443622,-200.0,0.000146,7]
[353324100,1739765443631,-200.0,0.000146,4]
[353324102,1739765443640,-202.56,0.000146,3]
[353324105,1739765443650,-500.0,0.00014617,2]
[353324107,1739765443660,-1028.76,0.00014617,2]
[353324109,1739765443669,-538.96,0.00014617,2]
[353324111,1739765443678,-1000.0,0.00014621,2]
[353324113,1739765443687,-191.95,0.00014699,2]
[353324115,1739765443696,-1028.76,0.00014699,2]
[353324117,1739765443705,-538.96,0.00014699,2]
[353324119,1739765443714,-320.9231383,0.0001475,2]
[353324121,1739765443723,-1028.76,0.00014781,2]
[353324123,1739765443732,-538.96,0.00014781,2]
[353324124,1739765443742,-160.0,0.00014799,2]
[353324126,1739765443751,-2320.60925345,0.000148,5]
[353324128,1739765443760,-200.0,0.000148,4]
[353324130,1739765443769,-200.0,0.000148,7]
[353324133,1739765443780,-200.0,0.000148,7]
[353324135,1739765443789,-3000.0,0.000148,2]
[353324137,1739765443799,-151.0,0.000148,2]
[353324139,1739765443808,-264.82241,0.000148,2]
[353324140,1739765443817,-264.82241,0.000148,2]
[353324143,1739765443826,-151.0,0.000148,2]
[353324145,1739765443836,-1310.8349,0.000148,2]
[353324147,1739765443845,-1310.8349,0.000148,2]
[353324149,1739765443859,-151.0,0.000148,2]
[353324151,1739765443868,-151.0,0.000148,2]
[353324153,1739765443878,-151.0,0.000148,2]
[353324154,1739765443887,-11392.9096685,0.000148,2]
[353324156,1739765443897,-151.0,0.000148,2]
[353324158,1739765443906,-199.80494202,0.000148,2]
[353324160,1739765443915,-199.8,0.000148,2]
[353324162,1739765443924,-165.336715,0.000148,2]
[353324164,1739765443933,-159.966676,0.000148,2]
[353324166,1739765443942,-159.966676,0.000148,2]
[353324168,1739765443951,-159.966676,0.000148,2]
[353324170,1739765443960,-159.966676,0.000148,2]
[353324172,1739765443970,-159.966676,0.000148,2]
[353324174,1739765443979,-159.966676,0.000148,2]
[353324176,1739765443988,-159.966676,0.000148,2]
[353324178,1739765443998,-159.966676,0.000148,2]
[353324180,1739765444008,-159.966676,0.000148,2]
[353324182,1739765444017,-159.966676,0.000148,2]
[353324184,1739765444026,-165.336715,0.000148,2]
[353324186,1739765444035,-159.966676,0.000148,2]
[353324188,1739765444044,-159.966676,0.000148,2]
[353324190,1739765444053,-159.966676,0.000148,2]
[353324192,1739765444063,-159.966676,0.000148,2]
[353324194,1739765444072,-159.966676,0.000148,2]
[353324196,1739765444081,-159.966676,0.000148,2]
[353324198,1739765444090,-159.966676,0.000148,2]
[353324200,1739765444099,-159.966676,0.000148,2]
[353324202,1739765444108,-159.966676,0.000148,2]
[353324204,1739765444118,-159.96,0.000148,2]
[353324205,1739765444127,-151.0,0.000148,2]
[353324207,1739765444136,-384.883437,0.000148,2]
[353324209,1739765444146,-384.883437,0.000148,2]
[353324211,1739765444155,-1028.76,0.00014863,2]
[353324213,1739765444165,-538.96,0.00014863,2]
[353324215,1739765444174,-500.0,0.00014873,2]
[353324217,1739765444184,-500.0,0.00014873,2]
[353324219,1739765444193,-500.0,0.00014873,2]
[353324221,1739765444202,-274.70902027,0.00014873,2]
[353324223,1739765444211,-500.0,0.00014873,2]
[353324226,1739765444221,-500.0,0.00014873,2]
[353324228,1739765444231,-500.0,0.00014873,2]
[353324230,1739765444240,-500.0,0.00014873,2]
[353324231,1739765444249,-500.0,0.00014873,2]
[353324234,1739765444259,-500.0,0.00014873,2]
[353324236,1739765444268,-521.98181344,0.00014873,2]
[353324238,1739765444277,-382.59355553,0.00014873,2]
[353324240,1739765444286,-500.0,0.00014873,2]
[353324242,1739765444295,-9321.47154693,0.0001489,2]
[353324244,1739765444304,-160.0,0.00014899,2]
[353324246,1739765444314,-684.33798262,0.000149,5]
[353324248,1739765444322,-153.65001717,0.000149,2]
[353324250,1739765444332,-153.65001717,0.000149,2]
[353324252,1739765444340,-153.65001717,0.000149,2]
[353324254,1739765444349,-153.65001717,0.000149,2]
[353324255,1739765444358,-153.65001717,0.000149,2]
[353324258,1739765444367,-153.65001717,0.000149,2]
[353324259,1739765444376,-153.65001717,0.000149,2]
[353324261,1739765444386,-153.65001717,0.000149,2]
[353324263,1739765444395,-153.65001717,0.000149,2]
[353324266,1739765444405,-153.65001717,0.000149,2]
[353324268,1739765444414,-153.65001717,0.000149,2]
[353324270,1739765444423,-153.65001717,0.000149,2]
[353324272,1739765444432,-153.65,0.000149,2]
[353324273,1739765444441,-175.942982,0.000149,2]
[353324278,1739765444549,-151.0,0.000149,2]